[Event "Titled Tuesday Blitz August 31 2021"]
[White "Pert, Richard G"]
[Black "Hansen, Sune Berg"]
[WhiteFideId "404748"]
[BlackFideId "1400266"]
[WhiteElo "2441"]
[BlackElo "2727"]
[Result "1-0"]
[Round "10"]
[TimeControl "180+1"]
[Date "2021.08.31"]
[WhiteClock "0:00:05"]
[BlackClock "0:00:07"]

1. d4 {[%clk 0:03:00]}  Nf6 {[%clk 0:02:58]} 2. Bg5 {[%clk 0:03:00]}  d5 {[%clk 0:02:57]} 3. e3 {[%clk 0:02:59]}  c5 {[%clk 0:02:57]} 4. Bxf6 {[%clk 0:02:59]}  exf6 {[%clk 0:02:58]} 5. Nc3 {[%clk 0:02:52]}  Be6 {[%clk 0:02:54]} 6. Nge2 {[%clk 0:02:50]}  Nc6 {[%clk 0:02:53]} 7. g3 {[%clk 0:02:50]}  cxd4 {[%clk 0:02:41]} 8. exd4 {[%clk 0:02:49]}  Qb6 {[%clk 0:02:32]} 9. Bg2 {[%clk 0:02:48]}  Rd8 {[%clk 0:02:30]} 10. O-O {[%clk 0:02:47]}  Be7 {[%clk 0:02:27]} 11. Nf4 {[%clk 0:02:36]}  Qxd4 {[%clk 0:02:19]} 12. Ncxd5 {[%clk 0:02:26]}  Bd6 {[%clk 0:01:40]} 13. Re1 {[%clk 0:02:09]}  Qxd1 {[%clk 0:01:24]} 14. Raxd1 {[%clk 0:02:03]}  Be5 {[%clk 0:01:23]} 15. c4 {[%clk 0:01:41]}  O-O {[%clk 0:01:19]} 16. Nd3 {[%clk 0:01:26]}  Bd4 {[%clk 0:01:09]} 17. b4 {[%clk 0:01:24]}  Bg4 {[%clk 0:01:05]} 18. Rd2 {[%clk 0:01:11]}  Rfe8 {[%clk 0:01:03]} 19. Rxe8+ {[%clk 0:01:02]}  Rxe8 {[%clk 0:01:02]} 20. h3 {[%clk 0:01:03]}  Bf5 {[%clk 0:00:46]} 21. b5 {[%clk 0:00:46]}  Na5 {[%clk 0:00:39]} 22. N3f4 {[%clk 0:00:28]}  Bc5 {[%clk 0:00:38]} 23. Bf1 {[%clk 0:00:18]}  h6 {[%clk 0:00:26]} 24. g4 {[%clk 0:00:18]}  Be4 {[%clk 0:00:25]} 25. Nc7 {[%clk 0:00:16]}  Re7 {[%clk 0:00:20]} 26. Nfd5 {[%clk 0:00:16]}  Re5 {[%clk 0:00:20]} 27. Kh2 {[%clk 0:00:13]}  Bf3 {[%clk 0:00:20]} 28. Bg2 {[%clk 0:00:12]}  Nxc4 {[%clk 0:00:17]} 29. Rc2 {[%clk 0:00:11]}  Bxd5 {[%clk 0:00:15]} 30. Nxd5 {[%clk 0:00:09]}  Bd6 {[%clk 0:00:16]} 31. f4 {[%clk 0:00:08]}  Rxd5 {[%clk 0:00:12]} 32. Bxd5 {[%clk 0:00:09]}  Ne3 {[%clk 0:00:12]} 33. Rc8+ {[%clk 0:00:08]}  Kh7 {[%clk 0:00:13]} 34. Bxf7 {[%clk 0:00:08]}  Bxf4+ {[%clk 0:00:12]} 35. Kg1 {[%clk 0:00:08]}  g5 {[%clk 0:00:12]} 36. Be6 {[%clk 0:00:08]}  Kg7 {[%clk 0:00:11]} 37. Ra8 {[%clk 0:00:07]}  Bd6 {[%clk 0:00:08]} 38. Rxa7 {[%clk 0:00:06]}  Bc5 {[%clk 0:00:08]} 39. Rxb7+ {[%clk 0:00:06]}  Kf8 {[%clk 0:00:09]} 40. Bf5 {[%clk 0:00:06]}  Nxf5+ {[%clk 0:00:08]} 41. Kg2 {[%clk 0:00:06]}  Ne3+ {[%clk 0:00:08]} 42. Kf3 {[%clk 0:00:06]}  Nd5 {[%clk 0:00:09]} 43. a4 {[%clk 0:00:06]}  Nc3 {[%clk 0:00:08]} 44. a5 {[%clk 0:00:06]}  Na4 {[%clk 0:00:07]} 45. b6 {[%clk 0:00:05]}  Bd6 {[%clk 0:00:08]} 46. a6 {[%clk 0:00:05]}  Ke8 {[%clk 0:00:07]} 47. a7 {[%clk 0:00:05]} 1-0


[Site "https://www.chess.com"]

[Event "Titled Tuesday Blitz August 31 2021"]
[White "Pires, Marcos Vinicius Torsani"]
[Black "Urazayev, Arystanbek"]
[WhiteFideId "2118939"]
[BlackFideId "13709810"]
[WhiteElo "2273"]
[BlackElo "2321"]
[Result "0-1"]
[Round "10"]
[TimeControl "180+1"]
[Date "2021.08.31"]
[WhiteClock "0:00:01"]
[BlackClock "0:00:23"]

1. e4 {[%clk 0:03:00]}  c5 {[%clk 0:02:59]} 2. c3 {[%clk 0:03:00]}  f5 {[%clk 0:02:58]} 3. exf5 {[%clk 0:02:59]}  Nf6 {[%clk 0:02:58]} 4. d4 {[%clk 0:02:57]}  d5 {[%clk 0:02:57]} 5. Bb5+ {[%clk 0:02:52]}  Nc6 {[%clk 0:02:57]} 6. Nf3 {[%clk 0:02:50]}  Bxf5 {[%clk 0:02:57]} 7. O-O {[%clk 0:02:50]}  e6 {[%clk 0:02:57]} 8. Ne5 {[%clk 0:02:46]}  Rc8 {[%clk 0:02:55]} 9. c4 {[%clk 0:02:40]}  a6 {[%clk 0:02:52]} 10. Ba4 {[%clk 0:02:35]}  Bd6 {[%clk 0:02:46]} 11. cxd5 {[%clk 0:02:27]}  exd5 {[%clk 0:02:45]} 12. Nxc6 {[%clk 0:02:22]}  bxc6 {[%clk 0:02:46]} 13. dxc5 {[%clk 0:02:20]}  Bxc5 {[%clk 0:02:42]} 14. Re1+ {[%clk 0:01:53]}  Kf7 {[%clk 0:02:42]} 15. Be3 {[%clk 0:01:48]}  Bxe3 {[%clk 0:02:36]} 16. Rxe3 {[%clk 0:01:49]}  Re8 {[%clk 0:02:36]} 17. Rxe8 {[%clk 0:01:45]}  Qxe8 {[%clk 0:02:37]} 18. Nc3 {[%clk 0:01:43]}  Qe5 {[%clk 0:02:34]} 19. Qd2 {[%clk 0:01:40]}  c5 {[%clk 0:02:24]} 20. Re1 {[%clk 0:01:37]}  Qd6 {[%clk 0:02:24]} 21. Bb3 {[%clk 0:01:35]}  c4 {[%clk 0:02:23]} 22. Bc2 {[%clk 0:01:33]}  Bxc2 {[%clk 0:02:22]} 23. Qxc2 {[%clk 0:01:34]}  Re8 {[%clk 0:02:10]} 24. Rxe8 {[%clk 0:01:30]}  Kxe8 {[%clk 0:02:11]} 25. h3 {[%clk 0:01:30]}  d4 {[%clk 0:02:06]} 26. Ne4 {[%clk 0:01:18]}  Nxe4 {[%clk 0:02:04]} 27. Qxe4+ {[%clk 0:01:19]}  Kf7 {[%clk 0:02:03]} 28. Qb7+ {[%clk 0:01:13]}  Kf6 {[%clk 0:02:02]} 29. Qf3+ {[%clk 0:01:13]}  Kg5 {[%clk 0:01:45]} 30. Qg4+ {[%clk 0:00:58]}  Kh6 {[%clk 0:01:41]} 31. h4 {[%clk 0:00:52]}  g6 {[%clk 0:01:32]} 32. Qe2 {[%clk 0:00:27]}  d3 {[%clk 0:01:31]} 33. Qd2+ {[%clk 0:00:27]}  Kg7 {[%clk 0:01:31]} 34. Qc3+ {[%clk 0:00:27]}  Qf6 {[%clk 0:01:14]} 35. Qxc4 {[%clk 0:00:25]}  d2 {[%clk 0:01:11]} 36. Qc7+ {[%clk 0:00:24]}  Kh6 {[%clk 0:01:11]} 37. Qc2 {[%clk 0:00:17]}  Qd4 {[%clk 0:01:07]} 38. Qd1 {[%clk 0:00:15]}  Qxb2 {[%clk 0:01:06]} 39. Kf1 {[%clk 0:00:14]}  Qb5+ {[%clk 0:01:06]} 40. Kg1 {[%clk 0:00:14]}  Qd3 {[%clk 0:01:04]} 41. f3 {[%clk 0:00:12]}  a5 {[%clk 0:00:48]} 42. Kf2 {[%clk 0:00:10]}  a4 {[%clk 0:00:48]} 43. g4 {[%clk 0:00:10]}  a3 {[%clk 0:00:43]} 44. Kg2 {[%clk 0:00:09]}  Kg7 {[%clk 0:00:43]} 45. Kf2 {[%clk 0:00:09]}  Kf7 {[%clk 0:00:43]} 46. h5 {[%clk 0:00:09]}  g5 {[%clk 0:00:39]} 47. Kg2 {[%clk 0:00:08]}  h6 {[%clk 0:00:39]} 48. Kf2 {[%clk 0:00:08]}  Kf6 {[%clk 0:00:35]} 49. Kg2 {[%clk 0:00:08]}  Ke5 {[%clk 0:00:34]} 50. Kg3 {[%clk 0:00:06]}  Qe3 {[%clk 0:00:31]} 51. Qa1+ {[%clk 0:00:01]}  Ke6 {[%clk 0:00:23]} 0-1


[Site "https://www.chess.com"]

[Event "Titled Tuesday Blitz August 31 2021"]
[White "Potapova, Margarita"]
[Black "Prydun, Andriy"]
[WhiteFideId "14126869"]
[BlackFideId "14145898"]
[WhiteElo "2214"]
[BlackElo "2047"]
[Result "1-0"]
[Round "10"]
[TimeControl "180+1"]
[Date "2021.08.31"]
[WhiteClock "0:00:47"]
[BlackClock "0:00:04"]

1. d4 {[%clk 0:03:00]}  d5 {[%clk 0:02:39]} 2. c4 {[%clk 0:03:01]}  c6 {[%clk 0:02:39]} 3. Nf3 {[%clk 0:03:00]}  Nf6 {[%clk 0:02:39]} 4. g3 {[%clk 0:03:01]}  e6 {[%clk 0:02:38]} 5. Bg2 {[%clk 0:03:01]}  Nbd7 {[%clk 0:02:38]} 6. O-O {[%clk 0:03:00]}  Be7 {[%clk 0:02:38]} 7. Nbd2 {[%clk 0:02:56]}  O-O {[%clk 0:02:38]} 8. Qc2 {[%clk 0:02:57]}  b6 {[%clk 0:02:38]} 9. e4 {[%clk 0:02:57]}  Bb7 {[%clk 0:02:39]} 10. e5 {[%clk 0:02:56]}  Ne8 {[%clk 0:02:39]} 11. cxd5 {[%clk 0:02:55]}  cxd5 {[%clk 0:02:40]} 12. Rd1 {[%clk 0:02:55]}  Rc8 {[%clk 0:02:39]} 13. Qa4 {[%clk 0:02:54]}  Bc6 {[%clk 0:02:13]} 14. Qb3 {[%clk 0:02:50]}  f6 {[%clk 0:02:06]} 15. exf6 {[%clk 0:02:38]}  Bxf6 {[%clk 0:02:06]} 16. Qe3 {[%clk 0:02:37]}  Qe7 {[%clk 0:02:05]} 17. Re1 {[%clk 0:02:33]}  Nc7 {[%clk 0:02:01]} 18. Nb3 {[%clk 0:02:19]}  Rce8 {[%clk 0:02:00]} 19. Bd2 {[%clk 0:02:16]}  Bb5 {[%clk 0:01:53]} 20. Rac1 {[%clk 0:02:16]}  Bc4 {[%clk 0:01:53]} 21. a3 {[%clk 0:02:12]}  Nb5 {[%clk 0:01:44]} 22. Bb4 {[%clk 0:02:12]}  Nd6 {[%clk 0:01:19]} 23. Ne5 {[%clk 0:02:12]}  Rc8 {[%clk 0:00:49]} 24. Nd2 {[%clk 0:02:04]}  a5 {[%clk 0:00:43]} 25. Bc3 {[%clk 0:01:46]}  Nf5 {[%clk 0:00:41]} 26. Qf4 {[%clk 0:01:36]}  Bg5 {[%clk 0:00:37]} 27. Qg4 {[%clk 0:01:36]}  Nxe5 {[%clk 0:00:30]} 28. Rxe5 {[%clk 0:01:35]}  b5 {[%clk 0:00:22]} 29. Rce1 {[%clk 0:01:34]}  b4 {[%clk 0:00:22]} 30. Rxe6 {[%clk 0:01:33]}  Qb7 {[%clk 0:00:19]} 31. axb4 {[%clk 0:01:22]}  axb4 {[%clk 0:00:18]} 32. Qxg5 {[%clk 0:01:17]}  bxc3 {[%clk 0:00:18]} 33. bxc3 {[%clk 0:01:18]}  Qb2 {[%clk 0:00:10]} 34. Nxc4 {[%clk 0:01:16]}  dxc4 {[%clk 0:00:10]} 35. Bd5 {[%clk 0:01:16]}  Kh8 {[%clk 0:00:09]} 36. R6e2 {[%clk 0:00:55]}  Qxc3 {[%clk 0:00:09]} 37. Be6 {[%clk 0:00:56]}  Nh6 {[%clk 0:00:08]} 38. Bxc8 {[%clk 0:00:53]}  Rxc8 {[%clk 0:00:05]} 39. Re8+ {[%clk 0:00:53]}  Rxe8 {[%clk 0:00:04]} 40. Rxe8+ {[%clk 0:00:54]}  Ng8 {[%clk 0:00:04]} 41. Qd8 {[%clk 0:00:47]} 1-0


[Site "https://www.chess.com"]

[Event "Titled Tuesday Blitz August 31 2021"]
[White "Pridorozhni, Aleksei"]
[Black "Hansen, Eric"]
[WhiteFideId "4127870"]
[BlackFideId "2606771"]
[WhiteElo "2565"]
[BlackElo "2568"]
[Result "1-0"]
[Round "10"]
[TimeControl "180+1"]
[Date "2021.08.31"]
[WhiteClock "0:00:08"]
[BlackClock "0:00:15"]

1. e4 {[%clk 0:03:00]}  e5 {[%clk 0:02:54]} 2. f4 {[%clk 0:03:01]}  exf4 {[%clk 0:02:52]} 3. Bc4 {[%clk 0:03:00]}  Ne7 {[%clk 0:02:50]} 4. Nc3 {[%clk 0:03:00]}  d5 {[%clk 0:02:48]} 5. Bxd5 {[%clk 0:02:53]}  Nxd5 {[%clk 0:02:45]} 6. Nxd5 {[%clk 0:02:54]}  Qh4+ {[%clk 0:02:34]} 7. Kf1 {[%clk 0:02:54]}  Bd6 {[%clk 0:02:34]} 8. Nf3 {[%clk 0:02:53]}  Qd8 {[%clk 0:01:54]} 9. d4 {[%clk 0:02:50]}  c6 {[%clk 0:01:55]} 10. Nxf4 {[%clk 0:02:49]}  O-O {[%clk 0:01:56]} 11. Kf2 {[%clk 0:02:46]}  Bg4 {[%clk 0:01:49]} 12. c3 {[%clk 0:02:33]}  c5 {[%clk 0:01:49]} 13. e5 {[%clk 0:02:28]}  Bc7 {[%clk 0:01:46]} 14. dxc5 {[%clk 0:02:09]}  Nd7 {[%clk 0:01:39]} 15. Re1 {[%clk 0:01:47]}  Bxf3 {[%clk 0:01:19]} 16. Qxf3 {[%clk 0:01:47]}  Nxe5 {[%clk 0:01:20]} 17. Qxb7 {[%clk 0:01:07]}  Re8 {[%clk 0:00:55]} 18. Re2 {[%clk 0:00:33]}  g5 {[%clk 0:00:44]} 19. Nd5 {[%clk 0:00:20]}  Ng4+ {[%clk 0:00:25]} 20. Ke1 {[%clk 0:00:19]}  Bxh2 {[%clk 0:00:23]} 21. Qc6 {[%clk 0:00:08]}  Rxe2+ {[%clk 0:00:15]} 22. Kxe2 {[%clk 0:00:09]}  Rc8 {[%clk 0:00:15]} 23. Qxc8 {[%clk 0:00:08]} 1-0


[Site "https://www.chess.com"]

[Event "Titled Tuesday Blitz August 31 2021"]
[White "Przybylski, Wojciech"]
[Black "Petriashvili, Nikoloz"]
[WhiteFideId "1117599"]
[BlackFideId "13611216"]
[WhiteElo "2250"]
[BlackElo "2430"]
[Result "0-1"]
[Round "10"]
[TimeControl "180+1"]
[Date "2021.08.31"]
[WhiteClock "0:00:05"]
[BlackClock "0:01:28"]

1. e4 {[%clk 0:03:00]}  c5 {[%clk 0:03:00]} 2. Nf3 {[%clk 0:02:58]}  Nc6 {[%clk 0:03:00]} 3. Bb5 {[%clk 0:02:57]}  g6 {[%clk 0:03:00]} 4. O-O {[%clk 0:02:57]}  Bg7 {[%clk 0:03:00]} 5. c3 {[%clk 0:02:57]}  Nf6 {[%clk 0:03:00]} 6. Qe2 {[%clk 0:02:57]}  O-O {[%clk 0:03:01]} 7. Rd1 {[%clk 0:02:57]}  d6 {[%clk 0:02:55]} 8. h3 {[%clk 0:02:56]}  e5 {[%clk 0:02:54]} 9. Bxc6 {[%clk 0:02:43]}  bxc6 {[%clk 0:02:54]} 10. d3 {[%clk 0:02:44]}  Nh5 {[%clk 0:02:52]} 11. Nh2 {[%clk 0:02:37]}  Qh4 {[%clk 0:02:45]} 12. Nf3 {[%clk 0:02:33]}  Qf6 {[%clk 0:02:42]} 13. Bg5 {[%clk 0:02:30]}  Nf4 {[%clk 0:02:39]} 14. Qe3 {[%clk 0:02:26]}  Qe6 {[%clk 0:02:38]} 15. Bxf4 {[%clk 0:02:25]}  exf4 {[%clk 0:02:39]} 16. Qxf4 {[%clk 0:02:25]}  Rb8 {[%clk 0:02:39]} 17. Na3 {[%clk 0:02:03]}  Ba6 {[%clk 0:02:31]} 18. Rab1 {[%clk 0:01:59]}  Qxa2 {[%clk 0:02:29]} 19. Qxd6 {[%clk 0:01:34]}  Rxb2 {[%clk 0:02:24]} 20. Qxc5 {[%clk 0:01:34]}  Rxb1 {[%clk 0:02:16]} 21. Nxb1 {[%clk 0:01:14]}  Bxd3 {[%clk 0:02:14]} 22. Nbd2 {[%clk 0:01:02]}  Qc2 {[%clk 0:02:12]} 23. Re1 {[%clk 0:00:10]}  Qxc3 {[%clk 0:01:52]} 24. Qxc3 {[%clk 0:00:09]}  Bxc3 {[%clk 0:01:52]} 25. Re3 {[%clk 0:00:09]}  Rd8 {[%clk 0:01:41]} 26. Ne1 {[%clk 0:00:08]}  Bxd2 {[%clk 0:01:39]} 27. Rxd3 {[%clk 0:00:08]}  Rxd3 {[%clk 0:01:38]} 28. Nxd3 {[%clk 0:00:09]}  a5 {[%clk 0:01:38]} 29. Nc5 {[%clk 0:00:09]}  Bb4 {[%clk 0:01:38]} 30. Na4 {[%clk 0:00:09]}  Kf8 {[%clk 0:01:38]} 31. Kf1 {[%clk 0:00:09]}  Ke7 {[%clk 0:01:37]} 32. Ke2 {[%clk 0:00:10]}  Ke6 {[%clk 0:01:38]} 33. f4 {[%clk 0:00:09]}  Bd6 {[%clk 0:01:35]} 34. Ke3 {[%clk 0:00:09]}  c5 {[%clk 0:01:27]} 35. g4 {[%clk 0:00:08]}  g5 {[%clk 0:01:21]} 36. e5 {[%clk 0:00:06]}  Be7 {[%clk 0:01:21]} 37. Ke4 {[%clk 0:00:05]}  gxf4 {[%clk 0:01:21]} 38. Kxf4 {[%clk 0:00:05]}  Kd5 {[%clk 0:01:21]} 39. Nb6+ {[%clk 0:00:04]}  Kd4 {[%clk 0:01:20]} 40. Nc8 {[%clk 0:00:04]}  Bf8 {[%clk 0:01:20]} 41. Nb6 {[%clk 0:00:03]}  c4 {[%clk 0:01:20]} 42. Nd7 {[%clk 0:00:02]}  c3 {[%clk 0:01:20]} 43. Nxf8 {[%clk 0:00:02]}  c2 {[%clk 0:01:21]} 44. Nxh7 {[%clk 0:00:02]}  c1=Q+ {[%clk 0:01:22]} 45. Kf5 {[%clk 0:00:02]}  Qc2+ {[%clk 0:01:23]} 46. Kf6 {[%clk 0:00:03]}  Qxh7 {[%clk 0:01:24]} 47. Ke7 {[%clk 0:00:03]}  Qg6 {[%clk 0:01:25]} 48. Kf8 {[%clk 0:00:04]}  Qe6 {[%clk 0:01:25]} 49. g5 {[%clk 0:00:04]}  Kxe5 {[%clk 0:01:26]} 50. h4 {[%clk 0:00:05]}  Kf5 {[%clk 0:01:27]} 51. h5 {[%clk 0:00:05]}  Kxg5 {[%clk 0:01:27]} 52. h6 {[%clk 0:00:06]}  Kf6 {[%clk 0:01:28]} 53. h7 {[%clk 0:00:05]}  Qc8# {[%clk 0:01:28]} 0-1


[Site "https://www.chess.com"]

[Event "Titled Tuesday Blitz August 31 2021"]
[White "Qashashvili, Alexandre"]
[Black "Buscar, Michael"]
[WhiteFideId "13600842"]
[BlackFideId "2603616"]
[WhiteElo "2316"]
[BlackElo "2010"]
[Result "1-0"]
[Round "10"]
[TimeControl "180+1"]
[Date "2021.08.31"]
[WhiteClock "0:00:07"]
[BlackClock "0:00:07"]

1. e4 {[%clk 0:03:00]}  c5 {[%clk 0:03:00]} 2. Nc3 {[%clk 0:02:51]}  Nc6 {[%clk 0:02:59]} 3. Nf3 {[%clk 0:02:51]}  Nf6 {[%clk 0:02:57]} 4. d3 {[%clk 0:02:50]}  g6 {[%clk 0:02:57]} 5. Be3 {[%clk 0:02:50]}  d6 {[%clk 0:02:57]} 6. Qd2 {[%clk 0:02:50]}  Bg7 {[%clk 0:02:53]} 7. Bh6 {[%clk 0:02:50]}  O-O {[%clk 0:02:54]} 8. h4 {[%clk 0:02:49]}  Nd4 {[%clk 0:02:44]} 9. Rc1 {[%clk 0:02:42]}  b5 {[%clk 0:02:06]} 10. h5 {[%clk 0:02:39]}  Nxh5 {[%clk 0:01:59]} 11. Rxh5 {[%clk 0:02:24]}  gxh5 {[%clk 0:01:55]} 12. Nxd4 {[%clk 0:02:20]}  Bxd4 {[%clk 0:01:55]} 13. Qg5+ {[%clk 0:02:00]}  Kh8 {[%clk 0:01:52]} 14. Bxf8 {[%clk 0:01:59]}  Qxf8 {[%clk 0:01:52]} 15. Qxh5 {[%clk 0:01:59]}  a6 {[%clk 0:01:41]} 16. Be2 {[%clk 0:01:54]}  Be6 {[%clk 0:01:39]} 17. a3 {[%clk 0:01:48]}  Qg7 {[%clk 0:01:39]} 18. Nd1 {[%clk 0:01:26]}  Qxg2 {[%clk 0:01:34]} 19. Kd2 {[%clk 0:01:20]}  Bxf2 {[%clk 0:01:23]} 20. Nxf2 {[%clk 0:01:21]}  Rg8 {[%clk 0:01:01]} 21. Rf1 {[%clk 0:01:07]}  Rg5 {[%clk 0:00:48]} 22. Qf3 {[%clk 0:01:01]}  Qh2 {[%clk 0:00:45]} 23. Rh1 {[%clk 0:01:00]}  Qe5 {[%clk 0:00:45]} 24. c3 {[%clk 0:00:57]}  b4 {[%clk 0:00:38]} 25. axb4 {[%clk 0:00:56]}  cxb4 {[%clk 0:00:38]} 26. Rh5 {[%clk 0:00:44]}  bxc3+ {[%clk 0:00:35]} 27. bxc3 {[%clk 0:00:44]}  Bg4 {[%clk 0:00:31]} 28. Rxg5 {[%clk 0:00:37]}  Qxg5+ {[%clk 0:00:30]} 29. Qe3 {[%clk 0:00:36]}  Qxe3+ {[%clk 0:00:23]} 30. Kxe3 {[%clk 0:00:36]}  Bxe2 {[%clk 0:00:24]} 31. Kxe2 {[%clk 0:00:37]}  Kg8 {[%clk 0:00:24]} 32. d4 {[%clk 0:00:33]}  Kf8 {[%clk 0:00:22]} 33. Kd3 {[%clk 0:00:33]}  Ke8 {[%clk 0:00:23]} 34. Kc4 {[%clk 0:00:33]}  Kd7 {[%clk 0:00:24]} 35. Kb4 {[%clk 0:00:33]}  Kc7 {[%clk 0:00:23]} 36. Ka5 {[%clk 0:00:33]}  Kb7 {[%clk 0:00:23]} 37. Nh3 {[%clk 0:00:29]}  h5 {[%clk 0:00:22]} 38. c4 {[%clk 0:00:27]}  h4 {[%clk 0:00:19]} 39. Nf4 {[%clk 0:00:23]}  e6 {[%clk 0:00:17]} 40. Kb4 {[%clk 0:00:19]}  Kc6 {[%clk 0:00:16]} 41. Nh3 {[%clk 0:00:16]}  f5 {[%clk 0:00:08]} 42. d5+ {[%clk 0:00:10]}  Kd7 {[%clk 0:00:05]} 43. exf5 {[%clk 0:00:10]}  exf5 {[%clk 0:00:04]} 44. Ka5 {[%clk 0:00:10]}  Ke7 {[%clk 0:00:03]} 45. Kxa6 {[%clk 0:00:10]}  Kf6 {[%clk 0:00:04]} 46. Kb6 {[%clk 0:00:09]}  Ke5 {[%clk 0:00:05]} 47. Kc6 {[%clk 0:00:07]}  f4 {[%clk 0:00:04]} 48. c5 {[%clk 0:00:06]}  dxc5 {[%clk 0:00:04]} 49. d6 {[%clk 0:00:07]}  f3 {[%clk 0:00:05]} 50. d7 {[%clk 0:00:07]}  c4 {[%clk 0:00:05]} 51. d8=Q {[%clk 0:00:07]}  c3 {[%clk 0:00:06]} 52. Qd1 {[%clk 0:00:08]}  Ke4 {[%clk 0:00:05]} 53. Qc2+ {[%clk 0:00:07]}  Ke3 {[%clk 0:00:06]} 54. Qxc3+ {[%clk 0:00:08]}  Ke2 {[%clk 0:00:07]} 55. Qe5+ {[%clk 0:00:07]}  Kf1 {[%clk 0:00:07]} 56. Qf4 {[%clk 0:00:08]}  Kg2 {[%clk 0:00:07]} 57. Qg4+ {[%clk 0:00:07]}  Kh2 {[%clk 0:00:07]} 58. Qxh4 {[%clk 0:00:08]}  Kg2 {[%clk 0:00:06]} 59. Qf2+ {[%clk 0:00:07]}  Kh1 {[%clk 0:00:07]} 60. Qxf3+ {[%clk 0:00:07]}  Kh2 {[%clk 0:00:07]} 61. Qg4 {[%clk 0:00:07]}  Kh1 {[%clk 0:00:07]} 62. Qg1# {[%clk 0:00:07]} 1-0


[Site "https://www.chess.com"]

[Event "Titled Tuesday Blitz August 31 2021"]
[White "Quintiliano Pinto, Renato R."]
[Black "Brunello, Marina"]
[WhiteFideId "2117568"]
[BlackFideId "822590"]
[WhiteElo "2439"]
[BlackElo "2328"]
[Result "1-0"]
[Round "10"]
[TimeControl "180+1"]
[Date "2021.08.31"]
[WhiteClock "0:00:10"]
[BlackClock "0:00:07"]

1. Nf3 {[%clk 0:03:00]}  d5 {[%clk 0:02:58]} 2. e3 {[%clk 0:03:00]}  Nf6 {[%clk 0:02:56]} 3. b3 {[%clk 0:02:59]}  Bg4 {[%clk 0:02:41]} 4. Bb2 {[%clk 0:02:58]}  c6 {[%clk 0:02:41]} 5. h3 {[%clk 0:02:51]}  Bh5 {[%clk 0:02:39]} 6. c4 {[%clk 0:02:45]}  e6 {[%clk 0:02:37]} 7. Be2 {[%clk 0:02:41]}  Nbd7 {[%clk 0:02:37]} 8. O-O {[%clk 0:02:41]}  Bg6 {[%clk 0:02:34]} 9. Nc3 {[%clk 0:02:37]}  Bd6 {[%clk 0:02:34]} 10. d4 {[%clk 0:02:36]}  O-O {[%clk 0:02:34]} 11. Nh4 {[%clk 0:02:32]}  Be4 {[%clk 0:02:32]} 12. Rc1 {[%clk 0:02:28]}  Re8 {[%clk 0:02:26]} 13. f3 {[%clk 0:01:43]}  Bg6 {[%clk 0:02:24]} 14. Nxg6 {[%clk 0:01:38]}  hxg6 {[%clk 0:02:24]} 15. f4 {[%clk 0:01:38]}  Rc8 {[%clk 0:02:05]} 16. Bf3 {[%clk 0:01:37]}  Nh7 {[%clk 0:01:31]} 17. Qd2 {[%clk 0:01:21]}  g5 {[%clk 0:01:30]} 18. f5 {[%clk 0:00:47]}  exf5 {[%clk 0:01:01]} 19. cxd5 {[%clk 0:00:46]}  c5 {[%clk 0:01:00]} 20. Nb5 {[%clk 0:00:38]}  Ndf6 {[%clk 0:00:56]} 21. Nxd6 {[%clk 0:00:34]}  Qxd6 {[%clk 0:00:56]} 22. dxc5 {[%clk 0:00:35]}  Qg3 {[%clk 0:00:52]} 23. d6 {[%clk 0:00:23]}  Rcd8 {[%clk 0:00:45]} 24. Qf2 {[%clk 0:00:20]}  Qxf2+ {[%clk 0:00:40]} 25. Rxf2 {[%clk 0:00:20]}  Ne4 {[%clk 0:00:41]} 26. Bxe4 {[%clk 0:00:20]}  Rxe4 {[%clk 0:00:40]} 27. Rxf5 {[%clk 0:00:15]}  Rxe3 {[%clk 0:00:38]} 28. Rcf1 {[%clk 0:00:13]}  f6 {[%clk 0:00:38]} 29. Rd5 {[%clk 0:00:13]}  Nf8 {[%clk 0:00:36]} 30. Rd2 {[%clk 0:00:12]}  Kf7 {[%clk 0:00:34]} 31. Rc1 {[%clk 0:00:11]}  Ne6 {[%clk 0:00:27]} 32. b4 {[%clk 0:00:12]}  Nf4 {[%clk 0:00:27]} 33. Kf1 {[%clk 0:00:10]}  Ke6 {[%clk 0:00:24]} 34. Re1 {[%clk 0:00:09]}  Rxe1+ {[%clk 0:00:23]} 35. Kxe1 {[%clk 0:00:10]}  Kd7 {[%clk 0:00:21]} 36. g3 {[%clk 0:00:09]}  Re8+ {[%clk 0:00:20]} 37. Kf1 {[%clk 0:00:09]}  Nxh3 {[%clk 0:00:19]} 38. Rd4 {[%clk 0:00:06]}  f5 {[%clk 0:00:17]} 39. Bc1 {[%clk 0:00:06]}  g4 {[%clk 0:00:17]} 40. a4 {[%clk 0:00:06]}  a6 {[%clk 0:00:17]} 41. b5 {[%clk 0:00:07]}  axb5 {[%clk 0:00:17]} 42. axb5 {[%clk 0:00:08]}  Ra8 {[%clk 0:00:16]} 43. Ke1 {[%clk 0:00:06]}  Ra1 {[%clk 0:00:15]} 44. Kd1 {[%clk 0:00:06]}  Nf2+ {[%clk 0:00:15]} 45. Kc2 {[%clk 0:00:06]}  Ne4 {[%clk 0:00:15]} 46. c6+ {[%clk 0:00:07]}  bxc6 {[%clk 0:00:15]} 47. bxc6+ {[%clk 0:00:08]}  Kxc6 {[%clk 0:00:14]} 48. d7 {[%clk 0:00:08]}  Ra2+ {[%clk 0:00:13]} 49. Kb3 {[%clk 0:00:08]}  Ra8 {[%clk 0:00:08]} 50. d8=Q {[%clk 0:00:08]}  Nc5+ {[%clk 0:00:08]} 51. Kc2 {[%clk 0:00:09]}  Rxd8 {[%clk 0:00:07]} 52. Rxd8 {[%clk 0:00:10]} 1-0


[Site "https://www.chess.com"]

[Event "Titled Tuesday Blitz August 31 2021"]
[White "Rustemov, Alexander"]
[Black "Mukhutdinov, Tigran"]
[WhiteFideId "4119002"]
[BlackFideId "34108570"]
[WhiteElo "2757"]
[BlackElo "2154"]
[Result "1-0"]
[Round "10"]
[TimeControl "180+1"]
[Date "2021.08.31"]
[WhiteClock "0:01:29"]
[BlackClock "0:00:54"]

1. d4 {[%clk 0:03:00]}  Nf6 {[%clk 0:02:58]} 2. c4 {[%clk 0:03:01]}  g6 {[%clk 0:02:58]} 3. Nf3 {[%clk 0:03:01]}  Bg7 {[%clk 0:02:58]} 4. g3 {[%clk 0:03:02]}  O-O {[%clk 0:02:58]} 5. Bg2 {[%clk 0:03:02]}  d5 {[%clk 0:02:58]} 6. cxd5 {[%clk 0:03:02]}  Nxd5 {[%clk 0:02:59]} 7. O-O {[%clk 0:03:02]}  Nc6 {[%clk 0:02:59]} 8. Nc3 {[%clk 0:03:03]}  e5 {[%clk 0:02:59]} 9. Bg5 {[%clk 0:03:02]}  Nxc3 {[%clk 0:02:55]} 10. bxc3 {[%clk 0:03:01]}  f6 {[%clk 0:02:55]} 11. Be3 {[%clk 0:02:56]}  Be6 {[%clk 0:02:46]} 12. dxe5 {[%clk 0:02:51]}  fxe5 {[%clk 0:02:37]} 13. Rb1 {[%clk 0:02:41]}  Qc8 {[%clk 0:02:22]} 14. Ng5 {[%clk 0:02:38]}  Bc4 {[%clk 0:02:21]} 15. Bd5+ {[%clk 0:02:36]}  Bxd5 {[%clk 0:02:08]} 16. Qxd5+ {[%clk 0:02:37]}  Kh8 {[%clk 0:02:09]} 17. Nf7+ {[%clk 0:02:34]}  Rxf7 {[%clk 0:02:09]} 18. Qxf7 {[%clk 0:02:34]}  e4 {[%clk 0:02:00]} 19. Rfd1 {[%clk 0:02:25]}  Ne5 {[%clk 0:01:58]} 20. Qd5 {[%clk 0:02:23]}  c6 {[%clk 0:01:53]} 21. Qxe4 {[%clk 0:02:22]}  Qh3 {[%clk 0:01:49]} 22. Qg2 {[%clk 0:02:17]}  Qf5 {[%clk 0:01:48]} 23. Rxb7 {[%clk 0:02:15]}  Re8 {[%clk 0:01:43]} 24. Bd4 {[%clk 0:02:14]}  c5 {[%clk 0:01:40]} 25. Bxe5 {[%clk 0:02:12]}  Qxe5 {[%clk 0:01:39]} 26. Rdd7 {[%clk 0:02:09]}  Qxe2 {[%clk 0:01:31]} 27. Qf1 {[%clk 0:01:56]}  Qxf1+ {[%clk 0:01:09]} 28. Kxf1 {[%clk 0:01:56]}  Bxc3 {[%clk 0:01:09]} 29. Rxh7+ {[%clk 0:01:50]}  Kg8 {[%clk 0:01:09]} 30. Rxa7 {[%clk 0:01:41]}  Bd4 {[%clk 0:01:08]} 31. Rhd7 {[%clk 0:01:36]}  Rf8 {[%clk 0:01:04]} 32. f4 {[%clk 0:01:34]}  g5 {[%clk 0:01:04]} 33. Ke2 {[%clk 0:01:33]}  gxf4 {[%clk 0:01:03]} 34. gxf4 {[%clk 0:01:34]}  Re8+ {[%clk 0:01:03]} 35. Kd3 {[%clk 0:01:33]}  Rf8 {[%clk 0:01:00]} 36. a4 {[%clk 0:01:31]}  Bg1 {[%clk 0:00:54]} 37. Rg7+ {[%clk 0:01:29]} 1-0


[Site "https://www.chess.com"]